bitfinex-derivatives/quotes_SOLF0:USTF0_20250310
["timestamp","ask_amount","ask_price","bid_price","bid_amount"]
[1741582392404,7.87188877,128.01,127.99,28.9]
[1741582396023,0.05918877,128.01,127.99,7.8133]
[1741582396214,0.05918877,128.01,127.98,8.90967147]
[1741582396413,0.05918877,128.01,128.0,8.85511311]
[1741582397822,7.87168877,128.01,127.98,16.72367147]
[1741582398515,7.87168877,128.01,127.98,8.90967147]
[1741582398722,7.8132,128.0,127.98,8.90967147]
[1741582399219,7.87188877,128.01,127.98,8.90967147]
[1741582399618,7.87188877,128.01,127.98,16.72347147]
[1741582400325,0.05918877,128.01,127.98,16.72347147]
[1741582400712,0.05918877,128.01,127.99,7.8137]
[1741582402124,0.05918877,128.01,127.98,8.90967147]
[1741582402616,0.05918877,128.01,127.99,7.8133]
[1741582403018,0.05918877,128.01,127.98,8.90967147]
[1741582403219,0.05918877,128.01,127.99,7.8137]
[1741582403813,0.05918877,128.01,127.98,8.90967147]
[1741582404320,0.05918877,128.01,127.99,7.8137]
[1741582404920,0.05918877,128.01,127.99,7.8133]
[1741582405921,0.05918877,128.01,127.99,7.8137]
[1741582408022,0.05918877,128.01,127.98,8.90967147]
[1741582408722,0.05918877,128.01,127.99,7.8132]
[1741582410423,0.05918877,128.01,128.0,8.85511311]
[1741582411427,0.05918877,128.01,128.0,16.66821311]
[1741582413421,0.05918877,128.01,128.0,8.85511311]
[1741582415526,0.05918877,128.01,127.99,28.88]
[1741582416620,0.05918877,128.01,127.98,16.72377147]
[1741582417128,7.87218877,128.01,127.98,8.90967147]
[1741582417627,7.87218877,128.01,127.98,16.72387147]
[1741582418523,0.05918877,128.01,127.98,0.05455836]
[1741582418729,37.79430188,128.01,127.94,148.38463524]
[1741582418926,8.85511311,127.99,127.94,117.46933524]
[1741582419227,8.85511311,127.99,127.94,125.28573524]
[1741582419428,1.95338074,127.98,127.95,8.85511311]
[1741582419623,1.95338074,127.97,127.95,8.85511311]
[1741582419823,7.8146,127.98,127.95,8.85511311]
[1741582419824,1.95338074,127.96,127.95,8.91341938]
[1741582420827,1.95338074,127.96,127.95,0.05830627]
[1741582421328,1.9534623,127.96,127.95,0.05830627]
[1741582421919,0.05354503,127.98,127.95,37.79341938]
[1741582422127,0.05354503,127.98,127.97,8.85511311]
[1741582423327,0.05354503,127.98,127.97,16.67001311]
[1741582423831,4.503e-05,127.98,127.97,16.67001311]
[1741582425434,2.0831,128.03,127.97,8.85511311]
[1741582425620,2.0831,128.03,128.01,8.85511311]
[1741582426131,2.0831,128.03,128.01,16.66721311]
[1741582426328,2.0831,128.03,128.01,8.85511311]
[1741582426728,2.14314824,128.03,128.01,8.90559362]
[1741582427637,0.06004824,128.03,128.01,8.90559362]
[1741582428435,0.06004824,128.03,128.02,7.8119]
[1741582429729,0.06004824,128.03,128.01,45.59779362]
[1741582430134,0.06004824,128.03,128.01,37.78559362]
[1741582430335,0.06004824,128.03,128.01,8.90559362]
[1741582431636,0.06004824,128.03,128.01,16.71809362]
[1741582431935,0.06004824,128.03,128.01,8.90559362]
[1741582432237,7.87144824,128.03,128.01,8.90559362]
[1741582433732,0.06004824,128.03,128.01,8.90559362]
[1741582433932,1.95272474,128.02,128.01,8.90559362]
[1741582434441,1.95272474,128.02,128.01,16.71809362]
[1741582435038,1.95273794,128.02,128.01,16.71809362]
[1741582439541,1.95273794,128.02,128.01,8.90559362]
[1741582440131,1.95273794,128.02,128.01,0.05048051]
[1741582440933,9.76463794,128.02,128.01,0.05048051]
[1741582443033,7.8143,127.98,127.95,18.73531311]
[1741582443333,1.95329728,127.97,127.95,8.85511311]
[1741582443526,8.85511311,128.0,127.95,8.85511311]
[1741582443733,7.8153,127.97,127.95,8.85511311]
[1741582444240,7.86506625,127.97,127.95,8.90848985]
[1741582444540,0.04976625,127.97,127.95,8.90848985]
[1741582445041,0.04976625,127.97,127.95,37.76848985]
[1741582445540,7.8155,127.96,127.95,0.05337674]
[1741582445733,9.76902225,127.96,127.95,0.05337674]
[1741582445933,1.95352225,127.96,127.95,0.05337674]
[1741582446336,1.95357098,127.96,127.95,0.05337674]
[1741582446537,0.04976625,127.97,127.95,0.05337674]
[1741582446736,1.95359118,127.96,127.95,0.05337674]
[1741582447329,7.86496625,127.97,127.95,0.05337674]
[1741582447735,7.8155,127.96,127.95,0.05337674]
[1741582448141,0.04976625,127.97,127.95,0.05337674]
[1741582448436,7.86486625,127.97,127.95,0.05337674]
[1741582448642,0.04976625,127.97,127.95,0.05337674]
[1741582450440,9.76921224,127.96,127.95,0.05337674]
[1741582450636,1.95371224,127.96,127.91,10.89621311]
[1741582450935,0.04976625,127.97,127.91,10.89621311]
[1741582451142,1.95376807,127.96,127.91,10.89621311]
[1741582451331,7.8163,127.95,127.92,7.8176]
[1741582451944,7.8163,127.95,127.92,7.86817452]
[1741582452745,7.8163,127.95,127.92,0.05057452]
[1741582453845,2.0151,127.96,127.92,0.05057452]
[1741582454046,7.8168,127.94,127.92,0.05057452]
[1741582454450,7.86801328,127.94,127.92,0.05057452]
[1741582455241,0.05121328,127.94,127.92,0.05057452]
[1741582455535,0.05121328,127.94,127.93,8.85511311]
[1741582457548,0.05121328,127.94,127.93,16.67251311]
[1741582460555,0.05121328,127.94,127.93,8.85511311]
[1741582462557,0.05121328,127.94,127.93,16.67251311]
[1741582462758,2.0474,127.99,127.93,37.73511311]
[1741582463060,10.80871311,128.02,127.97,8.85511311]
[1741582463356,1.95330305,128.01,127.97,8.85511311]
[1741582463557,10.80871311,128.02,127.97,8.85511311]
[1741582463753,1.95319412,128.01,127.97,8.85511311]
[1741582463955,7.86352097,128.01,127.98,0.05492922]
[1741582466860,0.05072097,128.01,127.98,0.05492922]
[1741582467064,0.05072097,128.01,128.0,13.84233132]
[1741582467455,0.05072097,128.01,128.0,21.65543132]
[1741582467856,0.05072097,128.01,128.0,7.8131]
[1741582468258,0.05072097,128.01,127.99,36.6935]
[1741582468856,0.05072097,128.01,128.0,7.8131]
[1741582469555,0.05072097,128.01,127.99,28.88]
[1741582469759,0.05072097,128.01,127.99,36.6935]
[1741582472157,0.05072097,128.01,128.0,7.8131]
[1741582474465,0.05072097,128.01,127.99,36.6934]
[1741582475761,0.05072097,128.01,127.99,28.88]
[1741582476266,0.05072097,128.01,127.98,13.89726054]
[1741582476456,7.86352097,128.01,127.98,21.71146054]
[1741582477064,7.8134,128.0,127.98,0.05492922]
[1741582477463,0.05072097,128.01,127.98,0.05492922]
[1741582480469,0.05072097,128.01,127.99,7.8136]
[1741582480671,0.05072097,128.01,127.98,42.75726054]
[1741582481258,2.1487,128.07,127.98,42.75726054]
[1741582481259,4.1546,128.07,128.0,13.84233132]
[1741582481465,1.95257353,128.06,128.03,7.8109]
[1741582481667,1.95257353,128.05,128.01,28.86]
[1741582481965,4.1546,128.07,128.01,28.86]
[1741582482170,1.9524513,128.06,128.01,28.86]
[1741582482371,4.1546,128.07,128.01,28.86]
[1741582482575,0.05112604,128.05,128.02,0.06022217]
[1741582482773,0.05112604,128.05,128.02,7.87172217]
[1741582483764,0.05112604,128.05,128.02,0.06022217]
[1741582483969,0.05112604,128.05,128.02,16.00335349]
[1741582484474,0.05112604,128.05,128.04,7.8106]
[1741582484773,0.05112604,128.05,128.04,36.6706]
[1741582484972,7.8074,128.1,128.06,7.8091]
[1741582485174,1.95200287,128.09,128.04,42.70233132]
[1741582485375,3.9086,128.11,128.04,42.70233132]
[1741582485572,1.95185252,128.1,128.04,42.70233132]
[1741582485768,7.807,128.1,128.06,7.809]
[1741582486378,0.05566955,128.09,128.07,0.05857648]
[1741582487469,0.05566955,128.09,128.07,7.86737648]
[1741582488272,0.05566955,128.09,128.08,7.8082]
[1741582488781,0.05566955,128.09,128.07,28.91857648]
[1741582488975,0.05566955,128.09,128.07,36.72707648]
[1741582490578,0.05566955,128.09,128.07,28.91857648]
[1741582492880,0.05566955,128.09,128.07,36.72727648]
[1741582494173,0.05566955,128.09,128.08,7.8082]
[1741582494769,0.05566955,128.09,128.07,0.05857648]
[1741582495173,7.86376955,128.09,128.07,0.05857648]
[1741582495380,0.05566955,128.09,128.07,0.05857648]
[1741582495781,7.86346955,128.09,128.07,0.05857648]
[1741582497479,7.8082,128.08,128.07,0.05857648]
[1741582499279,16.70917787,128.09,128.07,0.05857648]
[1741582499586,7.86346955,128.09,128.07,0.05857648]
[1741582500183,0.05566955,128.09,128.07,0.05857648]
[1741582500787,7.86356955,128.09,128.07,0.05857648]
[1741582500983,0.05566955,128.09,128.07,0.05857648]
[1741582501780,7.8082,128.08,128.07,0.05857648]
[1741582502387,0.05566955,128.09,128.07,0.05857648]
[1741582502981,0.05566955,128.09,128.07,37.7442848]
[1741582503176,0.05566955,128.09,128.07,45.5528848]
[1741582503484,0.05566955,128.09,128.07,37.7442848]
[1741582503687,7.86366955,128.09,128.07,37.7442848]
[1741582504591,7.86366955,128.09,128.07,8.9042848]
[1741582505490,7.8082,128.08,128.07,0.05857648]
[1741582506289,7.81,128.06,128.02,10.94650832]
[1741582506589,8.84570832,128.07,128.02,10.94650832]
[1741582507277,1.95236375,128.06,128.02,10.94650832]
[1741582507482,0.05171004,128.06,128.03,0.05992665]
[1741582507683,1.95246082,128.05,128.03,0.05992665]
[1741582507884,0.05171004,128.06,128.03,0.05992665]
[1741582508085,7.8106,128.04,128.03,0.05992665]
[1741582508977,7.86141004,128.06,128.03,0.05992665]
[1741582509783,0.05171004,128.06,128.04,7.8101]
[1741582509981,0.05171004,128.06,128.05,8.84570832]
[1741582510384,0.05171004,128.06,128.05,16.65570832]
[1741582511491,0.05171004,128.06,128.04,1.9625]
[1741582511693,0.05171004,128.06,128.04,10.80820832]
[1741582512290,0.05171004,128.06,128.04,1.9625]
[1741582512988,0.05171004,128.06,128.03,0.05992665]
[1741582513694,9.76264301,128.05,128.03,0.05992665]
[1741582513885,7.8103,128.05,128.03,0.05992665]
[1741582515195,7.8106,128.04,128.03,0.05992665]
[1741582515794,7.8102,128.05,128.03,0.05992665]
[1741582516002,0.05171004,128.06,128.03,0.05992665]
[1741582516490,0.05171004,128.06,128.04,7.8101]
[1741582516988,0.05171004,128.06,128.03,28.89992665]
[1741582517194,0.05171004,128.06,128.04,7.8106]
[1741582517693,0.05171004,128.06,128.03,28.89992665]
[1741582517893,0.05171004,128.06,128.05,7.81]
[1741582518094,2.00398637,128.06,128.05,7.81]
[1741582518391,0.05171004,128.06,128.05,7.81]
[1741582518692,2.00392957,128.06,128.05,7.81]
[1741582520894,0.05171004,128.06,128.05,7.81]
[1741582530008,1.9743,128.13,128.04,29.68946944]
[1741582530213,1.95176882,128.12,128.08,13.82908472]
[1741582530512,1.95176882,128.11,128.1,13.82908472]
[1741582530704,6.21807942,128.15,128.1,13.82908472]
[1741582530902,1.95136706,128.14,128.1,13.82908472]
[1741582531211,1.95136706,128.13,128.11,0.05615819]
[1741582531412,0.05592199,128.14,128.11,0.05615819]
[1741582531613,1.95117013,128.13,128.12,28.84]
[1741582532008,0.05592199,128.14,128.12,42.66908472]
[1741582533119,0.05592199,128.14,128.12,28.84]
[1741582534410,7.8051,128.13,128.11,0.05615819]
[1741582535815,7.86072199,128.14,128.11,0.05615819]
[1741582536314,0.05592199,128.14,128.11,0.05615819]
[1741582536615,7.8052,128.13,128.11,0.05615819]
[1741582537009,0.05592199,128.14,128.11,0.05615819]
[1741582537617,7.86062199,128.14,128.11,0.05615819]
[1741582537914,0.05592199,128.14,128.11,0.05615819]
[1741582538715,7.86092199,128.14,128.11,0.05615819]
[1741582539310,7.8058,128.12,128.11,0.05615819]
[1741582542026,7.86082199,128.14,128.11,0.05615819]
[1741582542215,0.05592199,128.14,128.11,0.05615819]
[1741582542713,7.86052199,128.14,128.11,0.05615819]
[1741582542918,0.05592199,128.14,128.12,13.82908472]
[1741582543119,0.05592199,128.14,128.13,28.82]
[1741582546217,5.34037942,128.15,128.14,7.8045]
[1741582546417,5.34037942,128.15,128.14,21.63358472]
[1741582546612,5.34037942,128.15,128.14,23.71748472]
[1741582547319,5.34037942,128.15,128.14,15.91298472]
[1741582547514,5.34037942,128.15,128.13,28.82]
[1741582547711,13.14477942,128.15,128.13,28.82]
[1741582547912,5.34037942,128.15,128.13,28.82]
[1741582550918,13.14467942,128.15,128.13,28.82]
[1741582551121,5.34037942,128.15,128.13,28.82]
[1741582551513,13.14457942,128.15,128.13,28.82]
[1741582553721,5.34037942,128.15,128.13,28.82]
[1741582553923,5.34037942,128.15,128.11,28.87615819]
[1741582554320,5.34037942,128.15,128.12,7.8053]
[1741582555528,13.14437942,128.15,128.12,7.8053]
[1741582555720,13.14437942,128.15,128.11,36.68225819]
[1741582556026,7.8055,128.13,128.11,0.05615819]
[1741582556524,0.05251753,128.13,128.11,0.05615819]
[1741582557325,7.8058,128.12,128.11,0.05615819]
[1741582559117,7.85771753,128.13,128.11,0.05615819]
[1741582561021,7.8058,128.12,128.11,0.05615819]
[1741582562019,0.05251753,128.13,128.11,0.05615819]
[1741582562729,7.85801753,128.13,128.11,0.05615819]
[1741582563120,0.05251753,128.13,128.11,0.05615819]
[1741582564031,7.8058,128.12,128.11,0.05615819]
[1741582564620,7.8058,128.12,128.08,36.6279]
[1741582564815,7.8064,128.11,128.08,28.82]
[1741582565021,0.05251753,128.13,128.08,28.82]
[1741582565615,0.05251753,128.13,128.09,0.04964641]
[1741582566122,7.85771753,128.13,128.09,0.04964641]
[1741582566323,0.05251753,128.13,128.09,0.04964641]
[1741582566516,7.8058,128.12,128.09,7.85694641]
[1741582566726,0.05251753,128.13,128.09,7.85694641]
[1741582566921,7.85801753,128.13,128.09,7.85694641]
[1741582567128,7.85801753,128.13,128.1,7.8068]
[1741582567330,0.05251753,128.13,128.09,0.04964641]
[1741582567828,0.05251753,128.13,128.11,7.8059]
[1741582568222,0.05251753,128.13,128.12,7.8058]
[1741582568925,0.05251753,128.13,128.11,7.8062]
[1741582569126,0.05251753,128.13,128.1,8.84113118]
[1741582569935,0.05251753,128.13,128.09,0.04964641]
[1741582570232,0.05251753,128.13,128.09,8.89077759]
[1741582570430,0.05251753,128.13,128.12,7.8058]
[1741582575133,0.05251753,128.13,128.11,45.46733118]
[1741582575333,0.05251753,128.13,128.11,37.66113118]
[1741582575638,0.05251753,128.13,128.12,7.8058]
[1741582576931,0.05251753,128.13,128.11,37.66113118]
[1741582577528,0.05251753,128.13,128.12,7.8058]
[1741582579838,0.05251753,128.13,128.09,8.89077759]
[1741582580037,8.89364871,128.13,128.09,0.04964641]
[1741582580637,8.89364871,128.13,128.04,168.3407773]
[1741582580638,8.84113118,128.11,128.04,168.3407773]
[1741582580831,8.84113118,128.07,128.04,168.3407773]
[1741582581328,8.84113118,128.07,128.04,176.1512773]
[1741582581530,8.84113118,128.09,128.04,177.18190848]
[1741582581734,0.05139353,128.07,128.05,126.36246809]
[1741582582033,0.05139353,128.07,128.06,7.8094]
[1741582582239,9.353e-05,128.07,128.06,23.60989958]
[1741582584229,2.03,128.14,128.11,7.8062]
[1741582584432,4.82396906,128.13,128.11,7.8062]
[1741582584630,4.82396906,128.12,128.1,28.82]
[1741582584933,4.82396906,128.11,128.09,7.8074]
[1741582585236,0.05311031,128.11,128.09,7.85719907]
[1741582585644,0.05311031,128.11,128.09,0.04979907]
[1741582586143,0.05311031,128.11,128.09,7.85679907]
[1741582586737,0.05311031,128.11,128.09,0.04979907]
[1741582587339,0.05311031,128.11,128.1,7.807]
[1741582587640,4.87615837,128.11,128.1,7.807]
[1741582588233,0.05311031,128.11,128.1,7.807]
[1741582588433,4.87605494,128.11,128.1,7.807]
[1741582589238,0.05311031,128.11,128.1,7.807]
[1741582590441,4.87697131,128.11,128.1,7.807]
[1741582591147,0.05311031,128.11,128.1,7.807]
[1741582593646,0.05311031,128.11,128.09,7.85729907]
[1741582593845,0.05311031,128.11,128.09,0.04979907]
[1741582596238,0.05311031,128.11,128.1,7.807]
[1741582596443,4.87992098,128.11,128.1,7.807]
[1741582596755,0.05311031,128.11,128.1,7.807]
[1741582598650,4.88028816,128.11,128.1,7.807]
[1741582598848,4.88028816,128.11,128.09,7.85719907]
[1741582599047,0.05311031,128.11,128.09,7.85719907]
[1741582599249,0.05311031,128.11,128.09,0.04979907]
[1741582599650,4.82778968,128.1,128.09,0.04979907]
[1741582600155,0.05311031,128.11,128.09,0.04979907]
[1741582601454,0.05311031,128.11,128.1,7.807]
[1741582601958,4.8810252,128.11,128.1,7.807]
[1741582602557,0.05311031,128.11,128.1,7.807]
[1741582602758,0.05311031,128.11,128.1,36.627]
[1741582603961,0.05311031,128.11,128.09,0.04979907]
[1741582605162,0.05311031,128.11,128.09,7.85689907]
[1741582605355,0.05311031,128.11,128.09,0.04979907]
[1741582606057,4.82814912,128.1,128.06,1.9827]
[1741582606259,4.82866685,128.09,128.08,7.8082]
[1741582606457,0.05311031,128.11,128.08,7.8082]
[1741582606659,4.82816977,128.1,128.08,7.8082]
[1741582606861,0.05311031,128.11,128.08,7.8082]
[1741582607050,4.82820477,128.1,128.06,1.9827]
[1741582607252,7.85951031,128.11,128.08,0.05393854]
[1741582607452,4.82807672,128.1,128.08,0.05393854]
[1741582607659,7.85971031,128.11,128.08,0.05393854]
[1741582607956,6.78725038,128.1,128.08,0.05393854]
[1741582608159,4.82805038,128.09,128.08,0.05393854]
[1741582608552,4.8277361,128.09,128.08,0.05393854]
[1741582610461,1.9592,128.1,128.08,0.05393854]
[1741582610661,4.82676819,128.09,128.08,7.86213854]
[1741582611467,1.9592,128.1,128.08,7.86213854]
[1741582611970,1.9592,128.1,128.08,0.05393854]
[1741582613470,9.7662,128.1,128.08,0.05393854]
[1741582614767,4.82595568,128.09,128.08,0.05393854]
[1741582616172,1.9592,128.1,128.08,7.86213854]
[1741582616361,0.05311031,128.11,128.08,0.05393854]
[1741582616566,0.05311031,128.11,128.09,8.84582024]
[1741582616861,0.05311031,128.11,128.09,16.65292024]
[1741582617374,4.82511283,128.1,128.08,7.86183854]
[1741582617573,0.05311031,128.11,128.08,7.86183854]
[1741582617777,4.82528813,128.1,128.09,7.8075]
[1741582618375,0.05311031,128.11,128.1,7.807]
[1741582618572,4.87843969,128.11,128.1,7.807]
[1741582618771,0.05311031,128.11,128.1,7.807]
[1741582623881,4.8810821,128.11,128.08,0.05393854]
[1741582624079,0.05311031,128.11,128.08,0.05393854]
[1741582624281,4.82880662,128.1,128.08,7.86193854]
[1741582624482,0.05311031,128.11,128.08,7.86193854]
[1741582624671,4.82880727,128.1,128.08,7.86193854]
[1741582624867,7.85961031,128.11,128.08,7.86193854]
[1741582625073,4.82883493,128.1,128.08,0.05393854]
[1741582625368,7.85961031,128.11,128.08,0.05393854]
[1741582625570,4.82878642,128.1,128.08,0.05393854]
[1741582625768,0.05311031,128.11,128.08,0.05393854]
[1741582625974,4.82892197,128.1,128.08,0.05393854]
[1741582626170,0.05311031,128.11,128.08,0.05393854]
[1741582626377,4.83061045,128.1,128.08,0.05393854]
[1741582626577,7.807,128.1,128.08,0.05393854]
[1741582626780,0.05311031,128.11,128.08,0.05393854]
[1741582626979,4.83060449,128.1,128.08,7.86213854]
[1741582627179,0.05311031,128.11,128.08,7.86213854]
[1741582627378,4.83096782,128.1,128.08,7.86213854]
[1741582627581,7.85971031,128.11,128.08,7.86213854]
[1741582627782,4.83103094,128.1,128.08,7.86213854]
[1741582627984,7.85971031,128.11,128.08,7.86213854]
[1741582628281,4.83103094,128.1,128.08,7.86213854]
[1741582628477,7.85971031,128.11,128.08,7.86213854]
[1741582628783,4.83097269,128.1,128.09,7.8075]
[1741582629884,4.83097269,128.1,128.08,7.86193854]
[1741582630085,0.05311031,128.11,128.08,7.86193854]
[1741582630281,4.83085637,128.1,128.08,7.86193854]
[1741582630483,0.05311031,128.11,128.08,7.86193854]
[1741582630678,4.83086341,128.1,128.08,7.86193854]
[1741582630876,0.05311031,128.11,128.08,7.86193854]
[1741582631077,4.83086855,128.1,128.09,7.8076]
[1741582631380,0.05311031,128.11,128.08,13.8687393]
[1741582632381,0.05311031,128.11,128.1,7.807]
[1741582632686,0.05311031,128.11,128.08,13.8687393]
[1741582633483,0.05311031,128.11,128.09,7.8072]
[1741582633686,4.8308301,128.1,128.08,0.05393854]
[1741582633887,0.05311031,128.11,128.08,0.05393854]
[1741582634184,0.05311031,128.11,128.09,7.8072]
[1741582635377,0.05311031,128.11,128.1,7.807]
[1741582640286,0.05311031,128.11,128.1,16.64841151]
[1741582642188,1.031e-05,128.11,128.1,16.64841151]
[1741582642382,5.34037942,128.15,128.14,7.8045]
[1741582642582,114.72606818,128.24,128.14,7.8045]
[1741582642583,8.84141151,128.22,128.14,37.64141151]
[1741582642787,4.82677998,128.21,128.17,8.84141151]
[1741582642982,4.82677998,128.2,128.17,8.84141151]
[1741582643279,4.82389992,128.19,128.17,8.84141151]
[1741582643485,4.82389992,128.18,128.17,8.90130658]
[1741582643790,13.66531143,128.18,128.13,8.84141151]
[1741582643990,4.82389992,128.17,128.13,8.84141151]
[1741582644288,12.62719992,128.16,128.13,8.84141151]
[1741582644488,7.8033,128.16,128.13,8.84141151]
[1741582644690,7.8038,128.16,128.13,8.84141151]
[1741582644989,8.89562335,128.16,128.13,0.05113457]
[1741582645987,0.05421184,128.16,128.13,8.89254608]
[1741582646489,0.05421184,128.16,128.13,16.69714608]
[1741582647080,0.05421184,128.16,128.15,8.84141151]
[1741582647285,0.05421184,128.16,128.15,16.64531151]
[1741582648788,0.05421184,128.16,128.15,8.84141151]
[1741582649796,0.05421184,128.16,128.13,45.49744608]
[1741582651097,0.05421184,128.16,128.14,7.8044]
[1741582654003,7.85761184,128.16,128.13,45.49744608]
[1741582654200,0.05421184,128.16,128.13,8.89254608]
[1741582654696,7.85791184,128.16,128.13,16.69764608]
[1741582654889,0.05421184,128.16,128.13,8.89254608]
[1741582655990,0.05421184,128.16,128.15,8.84141151]
[1741582657499,0.05421184,128.16,128.15,16.64531151]
[1741582657897,0.05421184,128.16,128.15,8.84141151]
[1741582658605,0.05421184,128.16,128.15,16.64531151]
[1741582658903,3.9961,128.21,128.15,8.84141151]
[1741582659097,3.9961,128.21,128.19,8.84141151]
[1741582659498,11.7965,128.21,128.19,8.84141151]
[1741582659698,17.19457781,128.28,128.19,8.84141151]
[1741582659903,8.84141151,128.24,128.19,16.64281151]
[1741582660204,7.7995,128.23,128.22,0.05199218]
[1741582661503,16.64091151,128.23,128.22,0.05199218]
[1741582661804,7.7995,128.23,128.22,0.05199218]
[1741582663303,16.64011151,128.24,128.22,0.05199218]
[1741582663500,0.04958925,128.25,128.22,0.05199218]
[1741582663901,7.84798925,128.25,128.22,0.05199218]
[1741582664112,0.04958925,128.25,128.22,0.05199218]
[1741582664505,7.7991,128.23,128.22,0.05199218]
[1741582666809,8.84141151,128.23,128.18,8.84141151]
[1741582667398,7.8012,128.2,128.18,8.84141151]
[1741582667902,8.84141151,128.23,128.18,8.84141151]
[1741582668108,0.05038055,128.2,128.18,0.05499034]
[1741582668309,8.84141151,128.25,128.17,28.78]
[1741582668609,8.84141151,128.25,128.2,8.84141151]
[1741582668798,0.0524694,128.22,128.2,8.84141151]
[1741582669208,0.0524694,128.22,128.2,8.89659718]
[1741582671503,0.0524694,128.22,128.2,10.96479718]
[1741582671809,0.0524694,128.22,128.21,7.8003]
[1741582672810,0.0524694,128.22,128.2,18.76539718]
[1741582673818,0.0524694,128.22,128.2,8.89659718]
[1741582674715,7.8523694,128.22,128.2,8.89659718]
[1741582675713,0.0524694,128.22,128.2,8.89659718]
[1741582676804,7.8524694,128.22,128.2,8.89659718]
[1741582678119,0.0524694,128.22,128.2,8.89659718]
[1741582678718,0.0524694,128.22,128.2,16.69739718]
[1741582678918,0.0524694,128.22,128.2,8.89659718]
[1741582679915,0.0524694,128.22,128.21,36.5603]
[1741582680133,0.0524694,128.22,128.21,38.6535]
[1741582680822,0.0524694,128.22,128.21,30.8532]
[1741582681215,61.38378684,128.33,128.21,30.8532]
[1741582681422,7.7958,128.29,128.24,8.84141151]
[1741582681611,7.7958,128.29,128.24,45.39951151]
[1741582682419,0.05726455,128.27,128.25,0.05722142]
[1741582683017,0.05726455,128.27,128.25,7.85492142]
[1741582685121,0.05726455,128.27,128.25,0.05722142]
[1741582687226,0.05726455,128.27,128.25,7.85492142]
[1741582687730,0.05726455,128.27,128.25,0.05722142]
[1741582688731,0.05726455,128.27,128.25,7.85472142]
[1741582696036,0.05726455,128.27,128.26,7.7972]
[1741582696233,0.05726455,128.27,128.26,16.63861151]
[1741582698139,0.05726455,128.27,128.26,8.84141151]
[1741582698739,0.05726455,128.27,128.25,28.79722142]
[1741582699135,0.05726455,128.27,128.25,0.05722142]
[1741582699730,7.7972,128.26,128.25,0.05722142]
[1741582701034,7.7987,128.24,128.22,8.84141151]
[1741582701231,1.9536,128.26,128.22,8.84141151]
[1741582702241,0.05705358,128.25,128.23,0.05343146]
[1741582702442,7.85515358,128.25,128.23,0.05343146]
[1741582703746,7.7985,128.24,128.23,0.05343146]
[1741582703949,0.05705358,128.25,128.23,0.05343146]
[1741582704545,7.85535358,128.25,128.23,0.05343146]
[1741582705045,7.85495358,128.25,128.23,0.05343146]
[1741582705241,0.05705358,128.25,128.23,0.05343146]
[1741582705741,0.05705358,128.25,128.23,8.89484297]
[1741582707547,0.05705358,128.25,128.23,16.69374297]
[1741582714255,0.05705358,128.25,128.24,7.7985]
[1741582714559,0.05705358,128.25,128.23,0.05343146]
[1741582714752,7.7985,128.24,128.23,0.05343146]
[1741582715650,7.8001,128.22,128.19,8.84141151]
[1741582715853,8.84141151,128.25,128.19,8.84141151]
[1741582716156,8.84141151,128.25,128.19,37.58141151]
[1741582716545,0.05737574,128.23,128.19,37.58141151]
[1741582716748,0.05737574,128.23,128.21,0.04943133]
[1741582718053,7.85677574,128.23,128.21,0.04943133]
[1741582720657,0.05737574,128.23,128.21,0.04943133]
[1741582722155,7.85667574,128.23,128.21,0.04943133]
[1741582722660,7.7997,128.22,128.21,0.04943133]
[1741582724161,7.85677574,128.23,128.21,0.04943133]
[1741582725551,7.85677574,128.23,128.21,8.89084284]
[1741582725954,7.7997,128.22,128.21,8.89084284]
[1741582726572,7.85677574,128.23,128.21,8.89084284]
[1741582727866,0.05737574,128.23,128.21,8.89084284]
[1741582728458,0.05737574,128.23,128.21,16.69074284]
[1741582728655,0.05737574,128.23,128.21,37.63084284]
[1741582729260,0.05737574,128.23,128.22,7.7997]
[1741582739982,6.35363249,128.28,128.21,37.63084284]
[1741582740183,14.14963249,128.28,128.25,8.84141151]
[1741582741186,14.20041458,128.28,128.25,8.90063808]
[1741582742078,14.20041458,128.28,128.25,16.69843808]
[1741582742278,6.40441458,128.28,128.25,16.69843808]
[1741582743178,14.20081458,128.28,128.25,16.69843808]
[1741582743376,14.20081458,128.28,128.25,8.90063808]
[1741582744185,14.20081458,128.28,128.25,16.69843808]
[1741582745384,7.7967,128.27,128.25,8.90063808]
[1741582745981,6.40441458,128.28,128.25,8.90063808]
[1741582746579,14.20071458,128.28,128.25,16.69813808]
[1741582746779,6.40441458,128.28,128.25,8.90063808]
[1741582747480,6.40441458,128.28,128.26,7.7972]
[1741582750090,6.40441458,128.28,128.27,7.7966]
[1741582750387,6.40441458,128.28,128.27,16.63801151]
[1741582751991,6.40441458,128.28,128.27,8.84141151]
[1741582754588,6.40441458,128.28,128.26,16.63831151]
[1741582757494,6.40441458,128.28,128.27,7.7966]